Cogmind - Beta 15 @@@ ROGUE MODE // 2025.09.13 @ 22:33:16 Player: McSaucyNugget Result: Destroyed by D-53 Grenadier with Mini Grenade Launcher Performance ------------- Evolutions (0) 0 Regions Visited (2) 400 Robots Destroyed (31) 155 Value Destroyed (544) 544 Prototype IDs (0) 0 Alien Tech Used (0) 0 Bonus (0) 0 TOTAL SCORE: 1099 Bonus ------- None Cogmind --------- Core Integrity 0/250 Matter 240/300 Energy 100/100 System Corruption 0% Temperature Cool (0) Movement Treading (250) Ox1 Location -10/Mines Parts ------- > --- POWER (1) -------- (None) > --- PROPULSION (2) --- Armored Treads > --- UTILITY (2) ------ Improved Heat Sink Large Storage Unit > --- WEAPON (2) ------- Autogun Flak Cannon > --- INVENTORY (15) --- Light Ion Engine Light Ion Engine Experimental Sensor Array Hacking Suite Heavy EM Pulse Gun Heavy EM Pulse Gun Beam Cannon Autogun Autogun Mini Grenade Launcher Mini Grenade Launcher Mining Laser Peak State ------------ > --- POWER ------------ Deuterium Engine > --- PROPULSION ------- Light Treads Armored Treads > --- UTILITY ---------- Improved Heat Sink Large Storage Unit > --- WEAPON ----------- Autogun Autogun > --- INVENTORY -------- Light Ion Engine Light Ion Engine Experimental Sensor Array Hacking Suite Heavy EM Pulse Gun Heavy EM Pulse Gun Beam Cannon Autogun Autogun Flak Cannon Mini Grenade Launcher Mini Grenade Launcher Mining Laser [Rating: 18] Favorites ----------- Power Ion Engine Engine Ion Engine Power Core Light Nuclear Core Propulsion Light Treads Treads Light Treads Utility Large Storage Unit Device Improved Heat Sink Storage Large Storage Unit Protection Light Armor Plating Weapon Autogun Energy Gun Heavy EM Pulse Gun Ballistic Gun Autogun Ballistic Cannon Flak Cannon Launcher Mini Grenade Launcher Special Weapon Mining Laser Build | -11 -10 -10 ------- Run | Yrd Mat Min Slots Evolved . | . . . Power . | . . . Propulsion . | . . . Utility . | . . . Weapon . | . . . Parts Attached 20 | 6 6 8 Power 3 | 1 1 1 Engine 2 | 1 . 1 Core 1 | . 1 . Reactor . | . . . Propulsion 3 | 2 . 1 Treads 3 | 2 . 1 Leg . | . . . Wheel . | . . . Hover . | . . . Flight . | . . . Utility 4 | 1 2 1 Device 1 | . 1 . Storage 2 | 1 1 . Processor . | . . . Hackware . | . . . Protection 1 | . . 1 Artifact . | . . . Weapon 10 | 2 3 5 Energy Gun 2 | . . 2 Energy Cannon . | . . . Ballistic Gun 4 | 2 2 . Ballistic Cannon 1 | . . 1 Launcher 2 | . . 2 Special Weapon 1 | . 1 . Impact Weapon . | . . . Slashing Weapon . | . . . Piercing Weapon . | . . . Special Melee Weapon . | . . . Unidentified Prototypes . | . . . Parts Lost 6 | . . 6 Power 2 | . . 2 Propulsion 2 | . . 2 Utility 1 | . . 1 Weapon 1 | . . 1 Highest Loss Streak 4 | . . 4 To Critical Strikes . | . . . Average Backups 10 | . 8 13 Power 1 | . 1 2 Propulsion . | . . . Utility 1 | . . 2 Weapon 7 | . 5 8 Tool/Special . | . . . Unused Backups 12 | . . 12 Power 2 | . . 2 Propulsion 3 | . . 3 Utility 3 | . . 3 Weapon 4 | . . 4 Tool/Special . | . . . Average Slot Usage (%) 96 | . 94 99 Engine 7 | . 5 10 Core 6 | . 8 3 Treads 27 | . 28 27 Device 7 | . 8 7 Storage 14 | . 14 14 Protection 3 | . . 6 Energy Gun 3 | . . 7 Ballistic Gun 21 | . 23 18 Special Weapon 2 | . 4 . Peak Build Rating 18 | 6 14 18 Average Rating 11 | 4 11 12 On Entrance 6 | . 6 14 Naked Turns . | . . . Heaviest Build 36 | 13 32 36 Greatest Support 40 | 40 40 40 Greatest Overweight (x) . | . . . Average Overweight (x) . | . . . Largest Inventory Capacity 15 | 8 15 15 Average Capacity 12 | 6 10 15 Most Carried 15 | 2 14 15 Average Carried 10 | . 8 13 Final Capacity 15 | 8 15 15 Final Carried 14 | 2 14 12 Class Distribution -------------------- 100% | Mutant Dominant Class ---------------- Mutant | -10/Materials Mutant | -10/Mines Resources | -11 -10 -10 ----------- Run | Yrd Mat Min Matter Collected 1085 | 183 399 503 Remotely . | . . . Salvage Created 861 | . 527 334 Parts 35 | . 25 10 Haulers Intercepted . | . . . Recyclers Shooed 1 | . 1 . Parts Field Recycled . | . . . Retrieved Matter . | . . . Parts Self-Destructed . | . . . Prevented . | . . . Kills | -11 -10 -10 ------- Run | Yrd Mat Min Combat Hostiles Destroyed 36 | . 12 24 Guns 19 | . 12 7 AOE 17 | . . 17 Classes Destroyed 7 | . 5 2 Worker 3 | . 1 2 Recycler 4 | . 3 1 Watcher 1 | . 1 . Swarmer 14 | . 9 5 Grunt 7 | . 3 4 Demolisher 1 | . . 1 Assembled 13 | . . 13 Best Kill Streak 8 | . 5 8 Combat Bots Only 8 | . 4 8 Max Kills in Single Turn 3 | . 2 3 Gunslinging 1 | . 1 . Exploded 3 | . . 3 Melee . | . . . Uniques/NPCs Destroyed 1 | . . 1 YI-UF0 (-10/Mines) Combat | -11 -10 -10 -------- Run | Yrd Mat Min Hostile Shots Fired 86 | . 30 56 Missed 23 | . 6 17 Hits 63 | . 24 39 Melee 1 | . . 1 Projectile 62 | . 24 38 AOE 13 | . . 13 Critical Strikes 1 | . . 1 Damage Taken 1234 | . 216 1018 Core 254 | . 32 222 Absorbed by Shields . | . . . Core Remaining (%) 100 | 100 . . Volleys Fired 88 | . 39 49 Largest 2 | . 2 2 Hottest 100 | . 100 90 Shots Fired 146 | . 72 74 Gun 114 | . 66 48 Cannon 2 | . . 2 Launcher 24 | . . 24 Special 6 | . 6 . Kinetic 102 | . 66 36 Thermal 6 | . 6 . Explosive 24 | . . 24 Electromagnetic 14 | . . 14 Robot Hit Streak 10 | . 10 8 Robot Miss Streak 3 | . 3 3 Penetration Max . | . . . Secondary Targets 1 | . 1 . Max Gunslinging Chain 1 | . 1 . Shots Hit Robots 87 | . 43 44 Core Hits 60 | . 18 42 Critical Kills . | . . . Critical Parts Destroyed . | . . . Critical Strikes . | . . . Melee Attacks . | . . . Impact . | . . . Slashing . | . . . Piercing . | . . . Sneak Attacks . | . . . Combat Hostiles . | . . . Follow-up Attacks . | . . . Damage Inflicted 2586 | 8 657 1921 Guns 1076 | . 633 443 Cannons 21 | . . 21 Explosions 1457 | . . 1457 Melee . | . . . Ramming 8 | 8 . . Kinetic 969 | . 633 336 Thermal 179 | . 24 155 Explosive 1302 | . . 1302 Electromagnetic 128 | . . 128 Impact . | . . . Slashing . | . . . Piercing . | . . . Highest Corruption . | . . . Average Corruption . | . . . Corruption Purged . | . . . Corruption Blocked . | . . . Overload Shots . | . . . Overflow Damage 128 | . . 128 Projectiles . | . . . Explosions 128 | . . 128 Melee . | . . . Knockbacks 1 | . . 1 Impact . | . . . Kinetic 1 | . . 1 Secondary . | . . . Self-Inflicted Damage 171 | . . 171 Shots 6 | . . 6 Rammed 1 | 1 . . Targets Rammed 1 | 1 . . Kicked . | . . . Crushed . | . . . Highest Temperature 156 | . 15 156 Average Temperature 30 | . 5 53 Received Heat Transfer 98 | . 30 68 Siege Activations . | . . . Martial Activations . | . . . Shielding Activations . | . . . Robots Disrupted . | . . . Combat Hostiles . | . . . Robots Corrupted . | . . . Combat Hostiles . | . . . Parts Fried . | . . . Impact Corruptions . | . . . Robots Melted . | . . . Combat Hostiles . | . . . Parts Melted . | . . . Heat Transferred 250 | . 50 200 Parts Sabotaged . | . . . Parts Stolen . | . . . Parts Stripped . | . . . Power Chain Reactions 1 | . . 1 Alert | -11 -10 -10 ------- Run | Yrd Mat Min Maximum Alert Level 1 | . 1 1 Low Security (%) 87 | 100 96 77 Level 1 12 | . 3 22 Level 2 . | . . . Level 3 . | . . . Level 4 . | . . . Level 5 . | . . . High Security . | . . . Max Security . | . . . Peak Influence 231 | . 221 231 Initial 13 | . . 13 Average 104 | . 94 123 Influence Increases 909 | . 434 475 Destroy 0b10 Robot/C 440 | . 240 200 Destroy 0b10 Robot/NC 40 | . 25 15 Destroy Leader 92 | . 52 40 Successful Hack 22 | . 22 . Select Force Hacks 60 | . 60 . Disable Machine 45 | . . 45 Destroy Structure 135 | . 5 130 Lose Combat Pursuer 75 | . 30 45 Influence Decreases 879 | . 400 479 Entered New Map 21 | . . 21 Time Decay 828 | . 400 428 Lost Part 30 | . . 30 Squads Dispatched 2 | . 2 . Investigation 2 | . 2 . Extermination . | . . . Reinforcement . | . . . Assault . | . . . Garrison . | . . . Intercept . | . . . Searches Triggered . | . . . Construction Impeded . | . . . Haulers Reinforced . | . . . Active Scanning Responses . | . . . Cargo Convoy Interrupts . | . . . Stealth | -11 -10 -10 --------- Run | Yrd Mat Min Distress Signals 1 | . 1 . Communications Jammed . | . . . Distress Signals . | . . . Times Spotted 52 | . 20 32 Peak Tracking Total 5 | . 5 5 Tactical Retreats 9 | . 1 8 Traps | -11 -10 -10 ------- Run | Yrd Mat Min Traps Triggered . | . . . Indirectly . | . . . Trap Hack Attempts . | . . . Triggered . | . . . Disarmed . | . . . Reprogrammed . | . . . Reused . | . . . Traps Extracted . | . . . Installed . | . . . Triggered . | . . . Machines | -11 -10 -10 ---------- Run | Yrd Mat Min Machines Disabled 3 | . . 3 Max in Single Turn 3 | . . 3 Machines Repaired . | . . . Machines Dismantled . | . . . Machines Sabotaged . | . . . Overloaded Fab Kills . | . . . Hacking | -11 -10 -10 --------- Run | Yrd Mat Min Machines Accessed 9 | . 8 1 Terminals 6 | . 6 . Fabricators . | . . . Repair Stations . | . . . Recycling Units 2 | . 2 . Scanalyzers . | . . . Garrison Access . | . . . Total Hacks 25 | . 24 1 Successful 15 | . 14 1 Failed 9 | . 9 . Catastrophic . | . . . Database Lockouts 1 | . 1 . Manual 22 | . 22 . Terminals 21 | . 21 . Fabricators . | . . . Repair Stations . | . . . Recycling Units 3 | . 3 . Scanalyzers . | . . . Garrison Access . | . . . Terminal Hacks 4 | . 3 1 Record 1 | . 1 . Part Schematic 1 | . 1 . Open Door 1 | . . 1 Zone Layout 1 | . 1 . Fabricator Hacks . | . . . Repair Station Hacks . | . . . Recycling Unit Hacks . | . . . Scanalyzer . | . . . Garrison Access Hacks . | . . . Unauthorized Hacks 11 | . 11 . Terminals 9 | . 9 . Botnet 4 | . 4 . Skim 5 | . 5 . Fabricators . | . . . Repair Stations . | . . . Recycling Units 2 | . 2 . Tunnel 2 | . 2 . Scanalyzers . | . . . Garrison Access . | . . . Data Cores Recovered . | . . . Used . | . . . Hacking Detections 4 | . 4 . Full Trace Events . | . . . Feedback Events . | . . . Feedback Blocked . | . . . Robot Schematics Acquired . | . . . Robots Built . | . . . Authchips . | . . . Time . | . . . Total Robot Build Rating . | . . . Part Schematics Acquired 1 | . 1 . Parts Built . | . . . Authchips . | . . . Time . | . . . Total Part Build Rating . | . . . Parts Repaired . | . . . Time . | . . . Parts Recycled . | . . . Recycled Matter . | . . . Retrieved Matter . | . . . Retrieved Components . | . . . Parts Scanalyzed . | . . . Part Schematics Acquired . | . . . Parts Damaged . | . . . Bothacking | -11 -10 -10 ------------ Run | Yrd Mat Min Used RIF Installer . | . . . Robots Hacked . | . . . Non-combat . | . . . Combat . | . . . Robot Hacks Applied . | . . . Relay Couplers Released . | . . . Fabnet Peak Effective % . | . . . Robots Rewired . | . . . Allies Hacked . | . . . Hacks Repelled . | . . . Allies | -11 -10 -10 -------- Run | Yrd Mat Min Total Allies . | . . . Largest Group . | . . . Highest-Rated Group . | . . . Highest-Rated Ally . | . . . Total Orders . | . . . Ally Attacks . | . . . Total Damage . | . . . Kills . | . . . Allies Corrupted . | . . . Allies Melted . | . . . Intel | -11 -10 -10 ------- Run | Yrd Mat Min Active Infowar (turns) . | . . . Robot Analysis Total . | . . . Derelict Logs Recovered 3 | . . 3 Drone Launches . | . . . Drone Recoveries . | . . . Exploration | -11 -10 -10 ------------- Run | Yrd Mat Min Turns Passed 2282 | 79 1149 1054 Spaces Moved 1211 | 53 614 544 Core 16 | 16 . . Treads 1195 | 37 614 544 Legs . | . . . Wheels . | . . . Hover . | . . . Flight . | . . . Fastest Speed 50 | 50 160 160 Average Speed 158 | 126 160 160 Slowest Speed 160 | 160 160 160 Overloaded Moves . | . . . Propulsion Burnouts . | . . . Robots Hopped . | . . . Potential Cave-ins . | . . . Cave-ins Triggered . | . . . Exploration Rate (%) 60 | 3 81 97 Regions Visited 2 Branch Regions 1 Pre-discovered Areas 5 | . 4 1 Known Exits Taken . | . . . Unknown Exits Taken 2 | 1 1 . Scrap Searched . | . . . Spaces Dug 4 | . 4 . Terrain Destroyed 201 | . 5 196 Melee . | . . . Projectile 5 | . 5 . AOE 196 | . . 196 Terrain Rammed . | . . . Walls Destroyed . | . . . Machines Disabled . | . . . Actions | -11 -10 -10 --------- Run | Yrd Mat Min Total 1430 | 61 710 659 Wait 67 | . 36 31 Move 1209 | 52 613 544 Hop . | . . . Pick Up 21 | 2 11 8 Fast Attach 9 | 6 3 . Attach 4 | . . 4 Detach 2 | . 2 . Swap 19 | . 3 16 Drop 10 | . 3 7 Fire 88 | . 39 49 Melee . | . . . Ram . | . . . Kick . | . . . Crush 1 | 1 . . Escape Stasis . | . . . Rewire . | . . . Trap . | . . . Miscellaneous . | . . . Route ------- -11/Scrapyard -10/Materials (discovered 6 exits: *Mat x3 / *Min x2 / Sub) -10/Mines (discovered 2 exits: *Mat x2) History --------- Turn | Location | Event 3 | -11/Scrapyard | Discovered new exit (range 15) 80 | -11/Scrapyard | Entered Materials 111 | -10/Materials | Discovered new exit (range 14) 311 | -10/Materials | Build established: Mutant 400 | -10/Materials | Discovered new exit (range 8) 555 | -10/Materials | Central database locked down 625 | -10/Materials | Discovered new exit (range 18) 683 | -10/Materials | Learned 4 Subcaves zone layouts 733 | -10/Materials | Identified exit to Subcaves 774 | -10/Materials | Identified exit to Materials 774 | -10/Materials | Learned location of 1 exit from Materials 803 | -10/Materials | Learned 2 Storage zone layouts 821 | -10/Materials | Learned Storage garrison access intel 831 | -10/Materials | Learned location of Storage (-9) 832 | -10/Materials | Loaded intel: 16 trap records 862 | -10/Materials | Learned Storage stockpile data 937 | -10/Materials | Loaded intel: 7 terminal locations 1229 | -10/Materials | Entered Mines 1373 | -10/Mines | Learned location of Zion (-6) 1483 | -10/Mines | Discovered exit to Materials (range 13) 1529 | -10/Mines | Assembled infested the area 1534 | -10/Mines | Assisted by a Guerilla fighting off Assembled 1709 | -10/Mines | Destroyed 8 combat bots 1975 | -10/Mines | Destroyed YI-UF0 1976 | -10/Mines | Core integrity fell below 50% 2056 | -10/Mines | Found a damaged Exp. Sensor Array with a note attached 2059 | -10/Mines | Found Prototype Device 2127 | -10/Mines | Discovered exit to Materials (range 9) 2213 | -10/Mines | Learned Materials emergency access door positions 2219 | -10/Mines | Met a Derelict who couldn't figure out how to use a Trap Extractor 2277 | -10/Mines | Core integrity fell below 20% 2283 | -10/Mines | Destroyed by D-53 Grenadier with Mini Grenade Launcher Last Messages --------------- 02219_ Machine disabled. 02219_ Lgt. Armor Plating destroyed. 02232_ Dropped EM Pulse Gun. 02233_ Acquired Hacking Suite. 02236_ Dropped Autogun. 02236_ Acquired Flak Cannon. 02239_ Dropped Ion Engine. 02242_ Dropped Wheel. 02242_ Acquired Arm. Treads. 02243_ Dropped Seismic Detector. 02245_ Acquired Titanium Leg. 02246_ Dropped Titanium Leg. 02250_ Acquired Autogun. 02276_ Lgt. Treads destroyed. 02278_ Autogun destroyed. 02278_ Lgt. Treads destroyed. 02279_ D-53 Grenadier knocked back. 02282_ The unstable cave ceiling collapses. 02282_ Deuterium Engine destroyed. 02282_ D-53 Grenadier destroyed. Map ----- +----------------------------------------------------+ | | | | | | | | | | | | | | | | | | | | | | | | | | | | | ###??????????????????????????????????????????????? | | ###???????????????????????????????????????????## | | ##?????????????????????????????????????????# | | # #?????????????####??????????????????????## | | [ # #?????????##### #######????????????????# | | ##????????## #???????????????## | | [ #??????### #### #????######????## | | #??##### ##??## ##??## | | #?##""[# #### #??# = | | ##?#"* X #???# ! % # | | ##??#"!= ### ##???# = !## | | #???#"=*! @ ## ####### #? | | #???#"!= # ## #### #? | | ##???# # # ## ## | | ##????## #### ### ### ### # | | ##??????###??#######?## # !% ##!= #?## ! | | #?????????????????????#####!d### ###??# =%! < | | #??????????????????????????#% ##*#????## | | #??????????????###########?# ## #?????#### | | #?????????????## ## ?# # #????????###### | | ??????????????# # ## ### #??????????????# | | ??????????????# ## #?????????#####?# | | #########?????# #?# ############?### ##? | | # #??????# #??# # =%!## ### #? | | #???????# ###?# #??#!=# #### ## | | ## #???????# # ### ###### | | | ### #???????# = ! | | ###### #???????## ## # ######## # #?? | | #???# ##???????####### #??????# ## ## #?? | | ???## #?????????????###??????## # ##????? | | ??## ##?###########??????????## ## ##?###?? | | ??# # ### #??###??????# # # ### ??? | | ??## # # ##?? ????# ### # #???? | | ???# # #?? ???####?## #???? | | ???# ## ## #### # ######### ## #???? | | ?###### !% %=== ## #???? | +----------------------------------------------------+ Best States ------------- Heat Dissipation 39 Energy Generation 14 Energy Capacity 275 Matter Stores 300 Matter Capacity 300 Sight Range 16 Terrain Scan Density 10 Armor Coverage 150 Evasion (%) 50 Recoil Reduction 2 Item Schematics ----------------- Huge Storage Unit | -10/Materials | Hacked Robot Schematics ------------------ None Fabricated ------------ Nothing Repaired ---------- Nothing Alien Tech Used ----------------- None Achievements -------------- None Challenges ------------ None Game ------ Seed ChargePartitionDisintegrator Manual? 0 Play Time 00:19:36 Cumulative 195.8 hours Start 2025.09.13 @ 11:37:30 End 2025.09.13 @ 22:33:16 Sessions 4 Manual Loads 0 Difficulty Rogue Special Mode None Game No. 92 Rogue 92 Adventurer 0 Explorer 0 Win Type - Total 18 Types 6/2/4/1/1/0/0/1/1/2 Lore% 73 Gallery% 72 Achievement% 67 Wizard Run 0 Options --------- Layout 0 ASCII 0 Keyboard 1 Movement Vi Keybinds 0 Fullscreen 2 Font 18/SmallcapsGlow Map View 76x50 Zoom Use 0% Tactical HUD 1 Map Filters NONE Filters NONE Steam 1 RUN: 7f6d9db5-f21b-4898-bb0a-b3e1077011e7